fUST/lending_fUST_20241213
["ID","MTS","AMOUNT","RATE_DAILY","PERIOD"]
[345223371,1734100234541,-1763.13,0.00027397,7]
[345223372,1734100234568,-1775.5,0.00027397,7]
[345223373,1734100234601,-500.0,0.00027397,7]
[345223374,1734100234624,-688.09,0.00027397,7]
[345223375,1734100234644,-500.0,0.00027397,7]
[345223377,1734100234666,-500.0,0.00027397,7]
[345223378,1734100234683,-500.0,0.00027397,7]
[345223379,1734100234692,-500.0,0.00027397,7]
[345223380,1734100234701,-551.0,0.00027397,7]
[345223381,1734100234712,-500.0,0.00027397,7]
[345223382,1734100234724,-500.0,0.00027397,7]
[345223383,1734100234733,-2010.98,0.00027397,7]
[345223384,1734100234742,-386.7,0.000274,2]
[345223385,1734100234752,-176.09994696,0.00027433,2]
[345223386,1734100234761,-176.09994696,0.00027571,2]
[345223387,1734100234771,-997.80042996,0.000276,2]
[345223388,1734100234780,-617.0,0.000276,2]
[345223389,1734100234790,-265.34948081,0.0002767,2]
[345223390,1734100234799,-185.74463656,0.0002767,2]
[345223391,1734100234808,-500.0,0.00027671,7]
[345223392,1734100234817,-556.47,0.00027671,7]
[345223393,1734100234832,-500.0,0.00027671,7]
[345223394,1734100234841,-500.0,0.00027671,7]
[345223395,1734100234850,-500.0,0.00027671,7]
[345223396,1734100234859,-500.0,0.00027671,7]
[345223397,1734100234868,-500.0,0.00027671,7]
[345223398,1734100234877,-579.99,0.00027671,7]
[345223399,1734100234887,-500.0,0.00027671,7]
[345223400,1734100234896,-500.0,0.00027671,7]
[345223401,1734100234906,-500.0,0.00027671,7]
[345223402,1734100234915,-500.0,0.00027671,7]
[345223403,1734100234925,-500.0,0.00027671,7]
[345223404,1734100234934,-500.0,0.00027671,7]
[345223405,1734100234944,-500.0,0.00027671,7]
[345223406,1734100234954,-500.0,0.00027671,7]
[345223407,1734100234964,-500.0,0.00027671,7]
[345223408,1734100234973,-969.34,0.00027671,7]
[345223409,1734100234983,-620.70924685,0.00027671,7]
[345223410,1734100234993,-500.0,0.00027671,7]
[345223411,1734100235002,-279.91913623,0.00027671,7]
[345223412,1734100235012,-500.0,0.00027671,7]
[345223413,1734100235021,-407.9470785,0.00027671,7]
[345223414,1734100235030,-455.9763504,0.00027671,7]
[345223415,1734100235040,-500.0,0.00027671,7]
[345223416,1734100235049,-500.0,0.00027671,7]
[345223417,1734100235058,-500.0,0.00027671,7]
[345223418,1734100235067,-500.0,0.00027671,7]
[345223419,1734100235081,-500.0,0.00027671,7]
[345223420,1734100235090,-500.0,0.00027671,7]
[345223421,1734100235100,-500.0,0.00027671,7]
[345223422,1734100235109,-500.0,0.00027671,7]
[345223423,1734100235122,-500.0,0.00027671,7]
[345223424,1734100235131,-500.0,0.00027671,7]
[345223425,1734100235141,-500.0,0.00027671,7]
[345223426,1734100235151,-500.0,0.00027671,7]
[345223427,1734100235161,-500.0,0.00027671,7]
[345223428,1734100235171,-500.0,0.00027671,7]
[345223429,1734100235180,-519.64,0.00027671,7]
[345223430,1734100235190,-500.0,0.00027671,7]
[345223431,1734100235199,-168.0,0.00027671,7]
[345223432,1734100235209,-500.0,0.00027671,7]
[345223433,1734100235218,-500.0,0.00027671,7]
[345223434,1734100235229,-500.0,0.00027671,7]
[345223435,1734100235238,-500.0,0.00027671,7]
[345223436,1734100235247,-500.0,0.00027671,7]
[345223437,1734100235256,-500.0,0.00027671,7]
[345223438,1734100235265,-500.0,0.00027671,7]
[345223439,1734100235276,-505.68,0.00027671,7]
[345223440,1734100235285,-737.95,0.00027671,7]
[345223441,1734100235294,-649.83,0.00027671,7]
[345223442,1734100235303,-203.47930135,0.00027671,7]
[345223443,1734100235313,-500.0,0.00027671,7]
[345223444,1734100235326,-500.0,0.00027671,7]
[345223445,1734100235336,-500.0,0.00027671,7]
[345223446,1734100235346,-500.0,0.00027671,7]
[345223447,1734100235355,-500.78,0.00027671,7]
[345223448,1734100235365,-1013.12,0.00027671,7]
[345223449,1734100235374,-534.31,0.00027671,7]
[345223450,1734100235384,-590.18,0.00027671,7]
[345223451,1734100235394,-662.47,0.00027671,7]
[345223452,1734100235403,-500.0,0.00027671,7]
[345223453,1734100235412,-634.8859662,0.00027671,7]
[345223454,1734100235423,-764.16,0.00027671,7]
[345223455,1734100235432,-500.0,0.00027671,7]
[345223456,1734100235442,-500.0,0.00027671,7]
[345223457,1734100235451,-500.0,0.00027671,7]
[345223458,1734100235461,-508.04,0.00027671,7]
[345223459,1734100235470,-500.0,0.00027671,7]
[345223460,1734100235479,-500.0,0.00027671,7]
[345223461,1734100235489,-516.33,0.00027671,7]
[345223462,1734100235498,-500.0,0.00027671,7]
[345223463,1734100235508,-745.86,0.00027671,7]
[345223464,1734100235525,-500.0,0.00027671,7]
[345223465,1734100235535,-500.0,0.00027671,7]
[345223466,1734100235545,-619.46144403,0.00027671,7]
[345223467,1734100235554,-500.0,0.00027671,7]
[345223468,1734100235563,-500.0,0.00027671,7]
[345223469,1734100235574,-500.0,0.00027671,7]
[345223470,1734100235585,-500.0,0.00027671,7]
[345223471,1734100235594,-500.0,0.00027671,7]
[345223472,1734100235604,-500.0,0.00027671,7]
[345223473,1734100235613,-668.53,0.00027671,7]
[345223474,1734100235622,-500.0,0.00027671,7]
[345223475,1734100235631,-634.18,0.00027671,7]
[345223476,1734100235640,-500.0,0.00027671,7]
[345223477,1734100235650,-2147.6,0.00027671,7]
[345223478,1734100235659,-511.54,0.00027671,7]
[345223479,1734100235669,-500.0,0.00027671,7]
[345223480,1734100235678,-517.0,0.00027671,7]
[345223481,1734100235688,-500.0,0.00027671,7]
[345223482,1734100235697,-500.0,0.00027671,7]
[345223483,1734100235707,-500.0,0.00027671,7]
[345223484,1734100235716,-748.98,0.00027671,7]
[345223485,1734100235725,-1171.07,0.00027671,7]
[345223486,1734100235735,-500.0,0.00027671,7]
[345223487,1734100235745,-592.7,0.00027671,7]
[345223488,1734100235754,-500.0,0.00027671,7]
[345223489,1734100235764,-2461.2,0.00027671,7]
[345223490,1734100235774,-500.0,0.00027671,7]
[345223491,1734100235783,-500.0,0.00027671,7]
[345223492,1734100235792,-500.0,0.00027671,7]
[345223493,1734100235802,-500.0,0.00027671,7]
[345223494,1734100235811,-3898.11,0.00027671,7]
[345223496,1734100235821,-500.0,0.00027671,7]
[345223497,1734100235837,-921.02,0.00027671,7]
[345223498,1734100235847,-675.17,0.00027671,7]
[345223499,1734100235857,-500.0,0.00027671,7]
[345223500,1734100235867,-500.0,0.00027671,7]
[345223501,1734100235876,-500.0,0.00027671,7]
[345223502,1734100235886,-500.0,0.00027671,7]
[345223503,1734100235895,-500.0,0.00027671,7]
[345223504,1734100235905,-873.09,0.00027671,7]
[345223505,1734100235915,-1371.19,0.00027671,7]
[345223506,1734100235925,-1899.23,0.00027671,7]
[345223507,1734100235934,-500.0,0.00027671,7]
[345223508,1734100235944,-932.68,0.00027671,7]
[345223509,1734100235953,-500.0,0.00027671,7]
[345223510,1734100235962,-500.0,0.00027671,7]
[345223511,1734100235971,-23486.3,0.00027671,5]
[345223512,1734100235981,-1763.13,0.00027671,7]
[345223513,1734100235990,-1775.5,0.00027671,7]
[345223514,1734100236000,-500.0,0.00027671,7]
[345223515,1734100236010,-688.09,0.00027671,7]
[345223516,1734100236019,-500.0,0.00027671,7]
[345223517,1734100236029,-500.0,0.00027671,7]
[345223518,1734100236039,-500.0,0.00027671,7]
[345223519,1734100236049,-551.0,0.00027671,7]
[345223520,1734100236059,-500.0,0.00027671,7]
[345223521,1734100236068,-500.0,0.00027671,7]
[345223522,1734100236083,-2010.98,0.00027671,7]
[345223523,1734100236092,-500.99203179,0.00027673,5]
[345223524,1734100236101,-161.33519985,0.00027673,5]
[345223525,1734100236111,-502.78573378,0.00027673,5]
[345223526,1734100236123,-500.4787729,0.00027673,5]
[345223527,1734100236133,-500.0,0.00027673,5]
[345223528,1734100236142,-327.65239837,0.00027673,5]
[345223529,1734100236152,-176.09994696,0.00027708,2]
[345223530,1734100236162,-25280.14425717,0.00027845,3]
[345223531,1734100236172,-176.09994696,0.00027845,2]
[345223532,1734100236182,-500.0,0.00027945,7]
[345223533,1734100236191,-556.47,0.00027945,7]
[345223534,1734100236202,-500.0,0.00027945,7]
[345223535,1734100236212,-500.0,0.00027945,7]
[345223536,1734100236223,-500.0,0.00027945,7]
[345223537,1734100236233,-500.0,0.00027945,7]
[345223538,1734100236243,-500.0,0.00027945,7]
[345223539,1734100236253,-579.99,0.00027945,7]
[345223540,1734100236263,-500.0,0.00027945,7]
[345223541,1734100236273,-206.10874458,0.00027945,7]
[345223542,1734100236283,-500.0,0.00027945,7]
[345223543,1734100236292,-500.0,0.00027945,7]
[345223544,1734100236302,-500.0,0.00027945,7]
[345223545,1734100236311,-500.0,0.00027945,7]
[345223546,1734100236321,-386.68303911,0.00027945,7]
[345223547,1734100236335,-546.74539228,0.00027945,7]
[345223548,1734100236344,-500.0,0.00027945,7]
[345223549,1734100236353,-969.34,0.00027945,7]
[345223550,1734100236363,-500.0,0.00027945,7]
[345223551,1734100236372,-500.0,0.00027945,7]
[345223552,1734100236381,-500.0,0.00027945,7]
[345223553,1734100236390,-500.0,0.00027945,7]
[345223554,1734100236400,-500.0,0.00027945,7]
[345223555,1734100236409,-500.0,0.00027945,7]
[345223556,1734100236418,-500.0,0.00027945,7]
[345223557,1734100236428,-150.05,0.00027945,7]
[345223558,1734100236437,-500.0,0.00027945,7]
[345223559,1734100236447,-500.0,0.00027945,7]
[345223560,1734100236457,-500.0,0.00027945,7]
[345223561,1734100236466,-500.0,0.00027945,7]
[345223562,1734100236476,-500.0,0.00027945,7]
[345223563,1734100236486,-500.0,0.00027945,7]
[345223564,1734100236495,-500.0,0.00027945,7]
[345223565,1734100236505,-500.0,0.00027945,7]
[345223566,1734100236515,-500.0,0.00027945,7]
[345223567,1734100236524,-519.64,0.00027945,7]
[345223568,1734100236534,-500.0,0.00027945,7]
[345223569,1734100236543,-168.0,0.00027945,7]
[345223570,1734100236552,-500.0,0.00027945,7]
[345223571,1734100236561,-500.0,0.00027945,7]
[345223572,1734100236571,-500.0,0.00027945,7]
[345223573,1734100236591,-500.0,0.00027945,7]
[345223574,1734100236600,-500.0,0.00027945,7]
[345223575,1734100236609,-500.0,0.00027945,7]
[345223576,1734100236619,-500.0,0.00027945,7]
[345223577,1734100236630,-505.68,0.00027945,7]
[345223578,1734100236640,-737.95,0.00027945,7]
[345223579,1734100236649,-649.83,0.00027945,7]
[345223580,1734100236659,-500.0,0.00027945,7]
[345223581,1734100236668,-500.0,0.00027945,7]
[345223582,1734100236677,-500.0,0.00027945,7]
[345223583,1734100236686,-500.0,0.00027945,7]
[345223584,1734100236696,-500.78,0.00027945,7]
[345223585,1734100236706,-1013.12,0.00027945,7]
[345223586,1734100236715,-534.31,0.00027945,7]
[345223587,1734100236724,-590.18,0.00027945,7]
[345223588,1734100236735,-662.47,0.00027945,7]
[345223589,1734100236745,-500.0,0.00027945,7]
[345223590,1734100236754,-764.16,0.00027945,7]
[345223591,1734100236764,-500.0,0.00027945,7]
[345223592,1734100236773,-500.0,0.00027945,7]
[345223593,1734100236783,-500.0,0.00027945,7]
[345223594,1734100236793,-508.04,0.00027945,7]
[345223595,1734100236802,-500.0,0.00027945,7]
[345223596,1734100236811,-500.0,0.00027945,7]
[345223597,1734100236824,-516.33,0.00027945,7]
[345223598,1734100236836,-500.0,0.00027945,7]
[345223599,1734100236846,-745.86,0.00027945,7]
[345223600,1734100236855,-500.0,0.00027945,7]
[345223601,1734100236865,-500.0,0.00027945,7]
[345223602,1734100236875,-500.0,0.00027945,7]
[345223603,1734100236884,-500.0,0.00027945,7]
[345223604,1734100236894,-500.0,0.00027945,7]
[345223605,1734100236903,-500.0,0.00027945,7]
[345223606,1734100236912,-500.0,0.00027945,7]
[345223607,1734100236922,-500.0,0.00027945,7]
[345223608,1734100236931,-668.53,0.00027945,7]
[345223609,1734100236940,-500.0,0.00027945,7]
[345223610,1734100236950,-634.18,0.00027945,7]
[345223611,1734100236959,-500.0,0.00027945,7]
[345223612,1734100236968,-2147.6,0.00027945,7]
[345223613,1734100236977,-511.54,0.00027945,7]
[345223614,1734100236986,-500.0,0.00027945,7]
[345223615,1734100236996,-517.0,0.00027945,7]
[345223616,1734100237007,-500.0,0.00027945,7]
[345223617,1734100237017,-500.0,0.00027945,7]
[345223618,1734100237026,-500.0,0.00027945,7]
[345223619,1734100237036,-748.98,0.00027945,7]
[345223620,1734100237046,-1171.07,0.00027945,7]
[345223621,1734100237056,-500.0,0.00027945,7]
[345223622,1734100237065,-592.7,0.00027945,7]
[345223623,1734100237079,-500.0,0.00027945,7]
[345223624,1734100237088,-2461.2,0.00027945,7]
[345223625,1734100237098,-500.0,0.00027945,7]
[345223626,1734100237107,-500.0,0.00027945,7]
[345223627,1734100237119,-500.0,0.00027945,7]
[345223628,1734100237129,-500.0,0.00027945,7]
[345223629,1734100237138,-3898.11,0.00027945,7]
[345223630,1734100237148,-500.0,0.00027945,7]
[345223631,1734100237157,-921.02,0.00027945,7]
[345223632,1734100237169,-675.17,0.00027945,7]
[345223633,1734100237178,-500.0,0.00027945,7]
[345223634,1734100237189,-500.0,0.00027945,7]
[345223635,1734100237199,-500.0,0.00027945,7]
[345223637,1734100237208,-500.0,0.00027945,7]
[345223638,1734100237217,-500.0,0.00027945,7]
[345223639,1734100237227,-873.09,0.00027945,7]
[345223640,1734100237236,-1371.19,0.00027945,7]
[345223641,1734100237246,-1899.23,0.00027945,7]
[345223642,1734100237256,-500.0,0.00027945,7]
[345223643,1734100237265,-932.68,0.00027945,7]
[345223644,1734100237275,-500.0,0.00027945,7]
[345223645,1734100237284,-500.0,0.00027945,7]
[345223646,1734100237293,-23486.3,0.00027945,5]
[345223647,1734100237302,-1763.13,0.00027945,7]
[345223648,1734100237312,-1775.5,0.00027945,7]
[345223649,1734100237322,-500.0,0.00027945,7]
[345223650,1734100237337,-688.09,0.00027945,7]
[345223651,1734100237347,-500.0,0.00027945,7]
[345223652,1734100237356,-500.0,0.00027945,7]
[345223653,1734100237365,-500.0,0.00027945,7]
[345223654,1734100237374,-551.0,0.00027945,7]
[345223655,1734100237383,-500.0,0.00027945,7]
[345223656,1734100237393,-500.0,0.00027945,7]
[345223657,1734100237403,-160.49657968,0.00027973,5]
[345223658,1734100237412,-381.41885672,0.00027973,5]
[345223659,1734100237421,-166.98238527,0.00027973,5]
[345223660,1734100237431,-500.0,0.00027973,5]
[345223661,1734100237440,-450.0,0.00028,2]
[345223662,1734100237450,-2020.74184119,0.00028,3]
[345223663,1734100237459,-313.0,0.00028,7]
[345223664,1734100237468,-183.29590742,0.00028045,5]
[345223665,1734100237478,-500.0,0.00028045,5]
[345223666,1734100237487,-151.0,0.00028124,2]
[345223667,1734100237497,-155.07662527,0.00028206,5]
[345223668,1734100237506,-421.34891575,0.00028206,5]
[345223669,1734100237516,-150.05,0.00028219,7]
[345223670,1734100237525,-500.0,0.00028219,7]
[345223671,1734100237535,-556.47,0.00028219,7]
[345223672,1734100237544,-640.91799406,0.00028219,7]
[345223673,1734100237553,-500.0,0.00028219,7]
[345223674,1734100237562,-500.0,0.00028219,7]
[345223675,1734100237573,-500.0,0.00028219,7]
[345223676,1734100237585,-500.0,0.00028219,7]
[345223677,1734100237594,-579.99,0.00028219,7]
[345223678,1734100237604,-500.0,0.00028219,7]
[345223679,1734100237613,-500.0,0.00028219,7]
[345223680,1734100237623,-500.0,0.00028219,7]
[345223681,1734100237633,-500.0,0.00028219,7]
[345223682,1734100237642,-500.0,0.00028219,7]
[345223683,1734100237652,-500.0,0.00028219,7]
[345223684,1734100237662,-969.34,0.00028219,7]
[345223685,1734100237672,-500.0,0.00028219,7]
[345223686,1734100237682,-500.0,0.00028219,7]
[345223687,1734100237691,-500.0,0.00028219,7]
[345223688,1734100237701,-500.0,0.00028219,7]
[345223689,1734100237710,-500.0,0.00028219,7]
[345223690,1734100237723,-500.0,0.00028219,7]
[345223691,1734100237733,-500.0,0.00028219,7]
[345223693,1734100237743,-500.0,0.00028219,7]
[345223695,1734100237752,-500.0,0.00028219,7]
[345223697,1734100237762,-424.24100812,0.00028219,7]
[345223698,1734100237771,-477.87452519,0.00028219,7]
[345223700,1734100237781,-500.0,0.00028219,7]
[345223701,1734100237791,-490.2541019,0.00028219,7]
[345223702,1734100237800,-500.0,0.00028219,7]
[345223703,1734100237810,-500.0,0.00028219,7]
[345223704,1734100237819,-500.0,0.00028219,7]
[345223705,1734100237832,-519.64,0.00028219,7]
[345223706,1734100237841,-500.0,0.00028219,7]
[345223707,1734100237851,-168.0,0.00028219,7]
[345223708,1734100237861,-500.0,0.00028219,7]
[345223709,1734100237871,-500.0,0.00028219,7]
[345223710,1734100237880,-461.10115886,0.00028219,7]
[345223711,1734100237890,-500.0,0.00028219,7]
[345223712,1734100237900,-500.0,0.00028219,7]
[345223713,1734100237909,-500.0,0.00028219,7]
[345223714,1734100237919,-500.0,0.00028219,7]
[345223715,1734100237929,-505.68,0.00028219,7]
[345223716,1734100237938,-737.95,0.00028219,7]
[345223717,1734100237947,-649.83,0.00028219,7]
[345223718,1734100237957,-500.0,0.00028219,7]
[345223719,1734100237966,-500.0,0.00028219,7]
[345223721,1734100237976,-500.0,0.00028219,7]
[345223723,1734100237985,-500.0,0.00028219,7]
[345223725,1734100237994,-500.78,0.00028219,7]
[345223727,1734100238004,-1013.12,0.00028219,7]
[345223729,1734100238013,-534.31,0.00028219,7]
[345223731,1734100238022,-590.18,0.00028219,7]
[345223733,1734100238032,-662.47,0.00028219,7]
[345223735,1734100238042,-500.0,0.00028219,7]
[345223737,1734100238051,-764.16,0.00028219,7]
[345223739,1734100238060,-500.0,0.00028219,7]
[345223740,1734100238069,-500.0,0.00028219,7]
[345223742,1734100238081,-500.0,0.00028219,7]
[345223744,1734100238091,-508.04,0.00028219,7]
[345223746,1734100238100,-500.0,0.00028219,7]
[345223748,1734100238110,-500.0,0.00028219,7]
[345223750,1734100238120,-516.33,0.00028219,7]
[345223752,1734100238131,-500.0,0.00028219,7]
[345223754,1734100238141,-745.86,0.00028219,7]
[345223756,1734100238150,-500.0,0.00028219,7]
[345223758,1734100238160,-500.0,0.00028219,7]
[345223760,1734100238170,-500.0,0.00028219,7]
[345223762,1734100238179,-500.0,0.00028219,7]
[345223764,1734100238187,-500.0,0.00028219,7]
[345223766,1734100238199,-500.0,0.00028219,7]
[345223768,1734100238209,-500.0,0.00028219,7]
[345223770,1734100238218,-500.0,0.00028219,7]
[345223772,1734100238229,-668.53,0.00028219,7]
[345223774,1734100238239,-500.0,0.00028219,7]
[345223776,1734100238248,-634.18,0.00028219,7]
[345223778,1734100238258,-500.0,0.00028219,7]
[345223779,1734100238267,-2147.6,0.00028219,7]
[345223780,1734100238277,-511.54,0.00028219,7]
[345223781,1734100238287,-500.0,0.00028219,7]
[345223782,1734100238296,-517.0,0.00028219,7]
[345223783,1734100238306,-500.0,0.00028219,7]
[345223784,1734100238326,-500.0,0.00028219,7]
[345223785,1734100238344,-500.0,0.00028219,7]
[345223786,1734100238363,-748.98,0.00028219,7]
[345223787,1734100238383,-1171.07,0.00028219,7]
[345223788,1734100238569,-500.0,0.00028219,7]
[345223789,1734100238582,-592.7,0.00028219,7]
[345223791,1734100238593,-500.0,0.00028219,7]
[345223792,1734100238603,-2461.2,0.00028219,7]
[345223793,1734100238612,-500.0,0.00028219,7]
[345223795,1734100238622,-500.0,0.00028219,7]
[345223797,1734100238632,-500.0,0.00028219,7]
[345223799,1734100238641,-500.0,0.00028219,7]
[345223800,1734100238651,-3898.11,0.00028219,7]
[345223802,1734100238661,-500.0,0.00028219,7]
[345223804,1734100238671,-921.02,0.00028219,7]
[345223806,1734100238680,-675.17,0.00028219,7]
[345223808,1734100238689,-500.0,0.00028219,7]
[345223810,1734100238699,-500.0,0.00028219,7]
[345223812,1734100238709,-500.0,0.00028219,7]
[345223814,1734100238719,-500.0,0.00028219,7]
[345223816,1734100238729,-500.0,0.00028219,7]
[345223818,1734100238738,-873.09,0.00028219,7]
[345223820,1734100238748,-1371.19,0.00028219,7]
[345223822,1734100238758,-1899.23,0.00028219,7]
[345223824,1734100238768,-500.0,0.00028219,7]
[345223825,1734100238778,-932.68,0.00028219,7]
[345223827,1734100238788,-500.0,0.00028219,7]
[345223829,1734100238798,-500.0,0.00028219,7]
[345223831,1734100238808,-23486.3,0.00028219,5]
[345223834,1734100238819,-1763.13,0.00028219,7]
[345223836,1734100238835,-1775.5,0.00028219,7]
[345223838,1734100238844,-500.0,0.00028219,7]
[345223840,1734100238854,-688.09,0.00028219,7]
[345223842,1734100238876,-500.0,0.00028219,7]
[345223843,1734100238898,-500.0,0.00028219,7]
[345223846,1734100238922,-500.0,0.00028219,7]
[345223847,1734100238944,-551.0,0.00028219,7]
[345223849,1734100238967,-500.0,0.00028219,7]
[345223851,1734100238989,-500.0,0.00028219,7]
[345223853,1734100239012,-500.0,0.00028221,5]
[345223855,1734100239033,-500.0,0.00028222,5]
[345223857,1734100239054,-649.75318393,0.00028273,2]
[345223859,1734100239078,-2000.0,0.000284,2]
[345223861,1734100239100,-153.01,0.000284,31]
[345223863,1734100239122,-153.01,0.000284,31]
[345223865,1734100239142,-153.01,0.000284,31]
[345223867,1734100239151,-153.01,0.000284,31]
[345223869,1734100239160,-153.01,0.000284,31]
[345223871,1734100239170,-153.01,0.000284,31]
[345223873,1734100239179,-153.01,0.000284,31]
[345223875,1734100239189,-199.9,0.00028493,7]
[345223877,1734100239199,-500.0,0.00028493,7]
[345223879,1734100239208,-556.47,0.00028493,7]
[345223881,1734100239217,-500.0,0.00028493,7]
[345223883,1734100239227,-489.0021986,0.00028493,7]
[345223885,1734100239236,-315.09250429,0.00028493,7]
[345223887,1734100239246,-500.0,0.00028493,7]
[345223889,1734100239255,-579.99,0.00028493,7]
[345223891,1734100239265,-500.0,0.00028493,7]
[345223893,1734100239274,-500.0,0.00028493,7]
[345223895,1734100239283,-500.0,0.00028493,7]
[345223897,1734100239293,-500.0,0.00028493,7]
[345223899,1734100239303,-500.0,0.00028493,7]
[345223901,1734100239312,-500.0,0.00028493,7]
[345223903,1734100239323,-969.34,0.00028493,7]
[345223905,1734100239334,-500.0,0.00028493,7]
[345223907,1734100239343,-500.0,0.00028493,7]
[345223909,1734100239353,-500.0,0.00028493,7]
[345223911,1734100239362,-500.0,0.00028493,7]
[345223913,1734100239372,-500.0,0.00028493,7]
[345223915,1734100239381,-500.0,0.00028493,7]
[345223917,1734100239391,-500.0,0.00028493,7]
[345223919,1734100239400,-500.0,0.00028493,7]
[345223921,1734100239410,-500.0,0.00028493,7]
[345223922,1734100239419,-500.0,0.00028493,7]
[345223924,1734100239430,-500.0,0.00028493,7]
[345223927,1734100239440,-500.0,0.00028493,7]
[345223928,1734100239449,-519.64,0.00028493,7]
[345223931,1734100239459,-500.0,0.00028493,7]
[345223933,1734100239470,-168.0,0.00028493,7]
[345223935,1734100239479,-500.0,0.00028493,7]
[345223937,1734100239489,-500.0,0.00028493,7]
[345223939,1734100239499,-500.0,0.00028493,7]
[345223941,1734100239509,-500.0,0.00028493,7]
[345223943,1734100239519,-500.0,0.00028493,7]
[345223945,1734100239529,-500.0,0.00028493,7]
[345223947,1734100239539,-505.68,0.00028493,7]
[345223949,1734100239549,-737.95,0.00028493,7]
[345223951,1734100239559,-649.83,0.00028493,7]
[345223953,1734100239569,-500.0,0.00028493,7]
[345223955,1734100239584,-500.0,0.00028493,7]
[345223957,1734100239595,-500.0,0.00028493,7]
[345223959,1734100239604,-500.0,0.00028493,7]
[345223961,1734100239614,-500.78,0.00028493,7]
[345223963,1734100239624,-1013.12,0.00028493,7]
[345223965,1734100239634,-534.31,0.00028493,7]
[345223967,1734100239644,-590.18,0.00028493,7]
[345223969,1734100239654,-662.47,0.00028493,7]
[345223971,1734100239664,-500.0,0.00028493,7]
[345223973,1734100239673,-764.16,0.00028493,7]
[345223975,1734100239683,-500.0,0.00028493,7]
[345223977,1734100239693,-500.0,0.00028493,7]
[345223979,1734100239703,-500.0,0.00028493,7]
[345223981,1734100239712,-508.04,0.00028493,7]
[345223983,1734100239721,-500.0,0.00028493,7]
[345223985,1734100239731,-500.0,0.00028493,7]
[345223987,1734100239740,-516.33,0.00028493,7]
[345223989,1734100239750,-500.0,0.00028493,7]
[345223990,1734100239759,-745.86,0.00028493,7]
[345223992,1734100239768,-500.0,0.00028493,7]
[345223994,1734100239778,-500.0,0.00028493,7]
[345223996,1734100239787,-500.0,0.00028493,7]
[345223998,1734100239797,-500.0,0.00028493,7]
[345224000,1734100239806,-500.0,0.00028493,7]
[345224002,1734100239816,-500.0,0.00028493,7]
[345224004,1734100239832,-500.0,0.00028493,7]
[345224006,1734100239842,-500.0,0.00028493,7]
[345224008,1734100239851,-668.53,0.00028493,7]
[345224010,1734100239860,-500.0,0.00028493,7]
[345224012,1734100239872,-634.18,0.00028493,7]
[345224015,1734100239881,-500.0,0.00028493,7]
[345224017,1734100239890,-2147.6,0.00028493,7]
[345224019,1734100239899,-511.54,0.00028493,7]